bitfinex/quotes_SOLUSD_20260214
["timestamp","ask_amount","ask_price","bid_price","bid_amount"]
[1771072252259,58.92,87.008,86.972,0.5]
[1771072252460,11.49213937,87.016,86.981,0.5]
[1771072252671,58.94,87.015,86.983,0.5]
[1771072252956,11.49240352,87.014,86.983,0.5]
[1771072253972,58.94,87.013,86.983,0.5]
[1771072254179,11.49266767,87.012,86.983,0.5]
[1771072254675,58.94,87.013,86.985,0.5]
[1771072254880,58.94,87.013,86.991,0.5]
[1771072255098,4.61729252,87.037,86.991,0.5]
[1771072255257,11.48949859,87.036,87.001,0.5]
[1771072255455,70.44949859,87.036,87.001,0.5]
[1771072256094,70.44949859,87.036,87.011,0.5]
[1771072257060,70.44949859,87.036,87.001,0.5]
[1771072257981,70.44949859,87.036,87.002,0.5]
[1771072258480,99.17324508,87.036,86.991,11.49535736]
[1771072258670,99.17324508,87.036,86.995,0.5]
[1771072259266,99.17324508,87.036,87.0,3.38019293]
[1771072259583,99.17324508,87.036,87.001,0.5]
[1771072259782,11.48949859,87.036,87.011,0.5]
[1771072260082,59.02,87.035,87.011,0.5]
[1771072260269,59.02,87.035,87.002,11.49398864]
[1771072260478,59.02,87.035,87.003,0.5]
[1771072263880,11.48976262,87.034,87.003,0.5]
[1771072264181,40.21416917,87.034,86.995,0.5]
[1771072264383,40.21416917,87.034,86.997,0.5]
[1771072264976,11.48976262,87.034,87.001,0.5]
[1771072265173,11.48976262,87.034,86.97,57.69064793]
[1771072265174,59.1,87.033,86.994,0.5]
[1771072265988,11.49002665,87.032,86.995,0.5]
[1771072266771,3.38019293,87.03,86.99,3.38019293]
[1771072266973,3.38019293,87.02,86.983,0.5]
[1771072267379,4.61729252,87.029,86.983,0.5]
[1771072267776,59.14,87.028,87.001,0.5]
[1771072268089,59.14,87.027,87.01,3.38019293]
[1771072268277,59.14,87.026,87.01,3.38019293]
[1771072268476,59.16,87.027,87.01,3.38019293]
[1771072268686,59.16,87.027,87.01,3.88019293]
[1771072268882,11.48817866,87.046,87.011,0.5]
[1771072269086,11.48817866,87.046,87.021,0.5]
[1771072269087,59.16,87.045,87.021,0.5]
[1771072269286,59.16,87.044,87.021,0.5]
[1771072270294,11.48857461,87.043,87.021,0.5]
[1771072272180,11.48857461,87.043,87.012,0.5]
[1771072272700,40.21001114,87.043,87.012,0.5]
[1771072273001,40.21001114,87.043,87.001,11.49412075]
[1771072273496,3.38019293,87.04,87.002,0.5]
[1771072274593,40.21185904,87.039,87.002,0.5]
[1771072274795,99.49185904,87.039,87.002,0.5]
[1771072277803,99.49185904,87.039,86.991,0.5]
[1771072278584,99.49185904,87.039,86.992,0.5]
[1771072279601,99.49185904,87.039,86.994,0.5]
[1771072279983,40.21185904,87.039,87.001,0.5]
[1771072280188,59.54,87.038,87.011,0.5]
[1771072282905,11.48936659,87.037,87.011,0.5]
[1771072284505,59.76,87.036,87.011,0.5]
[1771072285508,59.76,87.036,87.013,0.5]
[1771072286590,59.76,87.036,87.021,0.5]
[1771072292296,4.61729252,87.068,86.985,61.9]
[1771072292297,59.96,87.046,87.031,0.5]
[1771072292919,59.96,87.053,87.041,0.5]
[1771072293914,60.0,87.063,87.041,0.5]
[1771072294211,60.0,87.063,87.051,0.5]
[1771072295298,60.02,87.063,87.051,0.5]
[1771072300696,60.02,87.063,87.05,3.38389217]
[1771072307405,60.02,87.063,87.045,0.5]
[1771072307806,60.16,87.062,87.045,0.5]
[1771072308204,60.16,87.062,87.042,0.5]
[1771072309621,60.16,87.062,87.044,0.5]
[1771072313426,60.16,87.062,87.043,11.48857461]
[1771072314630,60.16,87.062,87.039,11.98910258]
[1771072314936,60.16,87.062,87.039,11.48910258]
[1771072315813,3.38389217,87.06,87.022,0.5]
[1771072316012,3.38389217,87.05,87.02,11.49157998]
[1771072316430,60.26,87.049,87.02,11.49157998]
[1771072317126,11.48791471,87.048,87.02,11.49157998]
[1771072320222,3.38389217,87.04,87.004,0.5]
[1771072320414,34.34,87.039,87.004,0.5]
[1771072321018,34.34,87.039,87.0,11.49425287]
[1771072321217,3.38389217,87.03,87.0,11.49425287]
[1771072321643,3.38389217,87.03,87.0,0.5]
[1771072321644,11.49042273,87.029,87.0,0.5]
[1771072323340,11.48964346,87.035,87.001,0.5]
[1771072323639,60.28,87.034,87.001,0.5]
[1771072324225,11.48989463,87.033,87.003,0.5]
[1771072330919,11.48989463,87.033,86.983,0.5]
[1771072330920,3.38389217,87.01,86.983,0.5]
[1771072331240,42.46,87.009,86.976,0.5]
[1771072331426,42.46,87.008,86.976,0.5]
[1771072331746,42.46,87.008,86.981,0.5]
[1771072332218,3.38389217,87.02,86.981,0.5]
[1771072332426,60.34,87.019,86.981,0.5]
[1771072332847,11.49187524,87.018,86.981,0.5]
[1771072333625,3.38389217,87.01,86.981,0.5]
[1771072333824,60.36,87.009,86.981,0.5]
[1771072334128,11.49319602,87.008,86.981,0.5]
[1771072334323,3.38389217,87.0,86.972,13.23814401]
[1771072334835,60.36,86.999,86.972,13.23814401]
[1771072335539,60.36,86.999,86.973,0.5]
[1771072335747,60.38,86.998,86.974,0.5]
[1771072338347,60.38,86.998,86.976,0.5]
[1771072339953,60.38,86.998,86.974,11.49766371]
[1771072340153,11.49442481,86.999,86.974,11.99766371]
[1771072340451,60.44,86.998,86.975,0.5]
[1771072342146,71.93462946,86.998,86.975,0.5]
[1771072342854,71.93462946,86.998,86.971,11.49808556]
[1771072343250,3.38389217,86.99,86.97,0.2]
[1771072343460,60.46,86.989,86.97,0.2]
[1771072344359,11.4958385,86.988,86.97,0.2]
[1771072345152,11.4958385,86.988,86.963,13.23814401]
[1771072345350,40.23543476,86.988,86.963,10.31085782]
[1771072346560,11.49610282,86.986,86.963,10.31085782]
[1771072347653,57.46314283,87.013,86.963,10.31085782]
[1771072347654,60.52,86.987,86.965,0.5]
[1771072348263,60.52,86.995,86.965,0.5]
[1771072348445,3.3877105,87.01,86.965,0.5]
[1771072348644,3.3877105,87.01,86.967,0.5]
[1771072348645,60.52,86.997,86.967,0.5]
[1771072349253,3.3877105,86.99,86.964,0.5]
[1771072349760,60.52,86.996,86.964,0.5]
[1771072350665,11.4949135,86.995,86.965,0.5]
[1771072351360,60.52,86.996,86.965,0.5]
[1771072351663,11.49319602,87.008,86.965,0.5]
[1771072351848,11.49174318,87.019,86.971,0.5]
[1771072352158,60.54,87.018,86.971,0.5]
[1771072352661,3.3877105,87.0,86.973,0.5]
[1771072352869,60.56,86.999,86.966,0.5]
[1771072353060,3.3877105,86.99,86.966,0.5]
[1771072353467,60.56,86.999,86.966,0.5]
[1771072353649,3.3877105,86.99,86.966,0.5]
[1771072353848,3.3877105,86.99,86.963,10.31085782]
[1771072354176,60.54,86.989,86.963,10.31085782]
[1771072355660,60.54,86.989,86.964,11.49901108]
[1771072355964,11.4958385,86.988,86.963,10.31085782]
[1771072356656,60.54,86.989,86.964,11.49901108]
[1771072357069,72.03572557,86.989,86.964,11.49901108]
[1771072357261,60.54,86.989,86.964,11.99901108]
[1771072359073,11.4958385,86.988,86.964,11.99901108]
[1771072360673,11.4958385,86.988,86.964,0.5]
[1771072360966,60.54,86.989,86.965,0.5]
[1771072361171,60.62,86.992,86.967,0.5]
[1771072361753,11.49267725,87.012,86.971,0.5]
[1771072361959,11.49156377,87.021,86.981,0.5]
[1771072362272,60.62,87.013,86.981,0.5]
[1771072363053,11.49174318,87.019,86.982,11.49663148]
[1771072363277,60.62,87.018,86.983,0.5]
[1771072363657,4.61729252,87.04,86.991,0.5]
[1771072363658,11.49021825,87.031,86.991,0.5]
[1771072363976,60.62,87.03,86.991,0.5]
[1771072364467,60.62,87.03,87.0,3.3877105]
[1771072364673,11.48891227,87.041,87.001,0.5]
[1771072365055,11.48891227,87.041,87.002,11.49398864]
[1771072365256,11.48891227,87.041,87.003,0.5]
[1771072365467,11.48883859,87.041,87.003,0.5]
[1771072366963,11.48831261,87.045,87.003,0.5]
[1771072369175,11.48710456,87.055,87.021,0.5]
[1771072369556,14.87408887,87.06,87.021,0.5]
[1771072369875,4.61729252,87.08,87.031,0.5]
[1771072369876,11.48508497,87.07,87.031,0.5]
[1771072370079,11.48441282,87.075,87.031,0.5]
[1771072370380,11.48441282,87.075,87.041,0.5]
[1771072370755,3.3877105,87.09,87.041,0.5]
[1771072370756,11.48378721,87.08,87.041,0.5]
[1771072370963,72.10378721,87.08,87.043,0.5]
[1771072371163,11.48378721,87.08,87.043,0.5]
[1771072373280,60.62,87.085,87.051,0.5]
[1771072373450,11.48248225,87.09,87.051,0.5]
[1771072373856,72.10248225,87.09,87.051,0.5]
[1771072375069,14.87019275,87.09,87.051,0.5]
[1771072375263,14.87019275,87.09,87.053,0.5]
[1771072376978,3.3877105,87.08,87.042,11.4886838]
[1771072377271,43.57612913,87.09,87.043,0.5]
[1771072377474,3.3877105,87.08,87.045,0.5]
[1771072378889,11.48263825,87.088,87.045,0.5]
[1771072379177,3.3877105,87.08,87.045,0.5]
[1771072379493,3.3877105,87.07,87.037,11.98929108]
[1771072379685,11.48382503,87.079,87.028,82.70618133]
[1771072379686,3.3877105,87.06,87.031,0.5]
[1771072380074,3.3877105,87.06,87.03,11.49027629]
[1771072380692,3.3877105,87.06,87.03,11.99027629]
[1771072381061,3.3877105,87.06,87.03,0.5]
[1771072381492,11.4864632,87.059,87.03,0.5]
[1771072382487,11.4864632,87.059,87.031,11.49015867]
[1771072382667,11.4864632,87.059,87.032,0.5]
[1771072383476,57.40998839,87.093,87.031,11.49015867]
[1771072383477,11.48395691,87.078,87.041,0.5]
[1771072383683,11.48395691,87.078,87.043,0.5]
[1771072387268,60.62,87.084,87.045,0.5]
[1771072387877,3.3877105,87.08,87.045,0.5]
[1771072390493,11.48382503,87.079,87.045,0.5]
[1771072390695,10.57898187,87.079,87.045,0.5]
[1771072392368,39.28854445,87.079,87.045,0.5]
[1771072395384,3.3877105,87.07,87.04,0.5]
[1771072395585,3.3877105,87.07,87.039,11.48908116]
[1771072396070,11.48514396,87.069,87.034,0.5]
[1771072396467,11.48514396,87.069,87.035,11.4896306]
[1771072396775,60.66,87.068,87.036,0.5]
[1771072398580,3.3877105,87.06,87.03,0.5]
[1771072399401,3.3877105,87.06,87.021,11.49147906]
[1771072399402,3.3877105,87.06,87.022,0.5]
[1771072400574,11.4864632,87.059,87.023,11.49121496]
[1771072400774,11.4864632,87.059,87.024,0.5]
[1771072402804,11.4864632,87.059,87.026,0.5]
[1771072403881,40.2026212,87.059,87.02,0.5]
[1771072406494,3.3877105,87.05,87.021,11.49147906]
[1771072406678,3.3877105,87.05,87.022,0.5]
[1771072406877,3.38307198,87.05,87.022,0.5]
[1771072407079,40.2026212,87.059,87.022,0.5]
[1771072408398,60.68,87.061,87.031,0.5]
[1771072408601,60.68,87.061,87.033,0.5]
[1771072408903,11.48633126,87.06,87.033,0.5]
[1771072410990,11.48633126,87.06,87.035,0.5]
[1771072411193,11.48513172,87.07,87.035,0.5]
[1771072411386,11.48513172,87.07,87.041,0.5]
[1771072412704,11.48448446,87.074,87.041,11.98876822]
[1771072413001,3.38307198,87.07,87.037,0.5]
[1771072415194,11.48514396,87.069,87.039,0.5]
[1771072415907,11.48514396,87.069,87.038,11.48923458]
[1771072417306,3.38307198,87.06,87.027,0.5]
[1771072417612,3.38307198,87.05,87.019,0.5]
[1771072419627,11.48778274,87.049,87.02,0.5]
[1771072422208,40.2027155,87.059,87.021,11.49147906]
[1771072422402,60.82,87.058,87.022,0.5]
[1771072423795,20.45402944,87.133,87.021,11.49147906]
[1771072423796,11.4857914,87.065,87.031,0.5]
[1771072423996,11.48382503,87.079,87.031,0.5]
[1771072424210,11.48408879,87.077,87.032,11.49002665]
[1771072424513,11.48408879,87.077,87.033,0.5]
[1771072424709,11.48356976,87.081,87.041,0.5]
[1771072425019,72.32356976,87.081,87.041,0.5]
[1771072426116,3.38307198,87.07,87.041,0.5]
[1771072426693,11.48382503,87.079,87.043,0.5]
[1771072428510,11.48382503,87.079,87.044,11.48844262]
[1771072428815,11.48382503,87.079,87.045,0.5]
[1771072429408,3.38307198,87.08,87.045,0.5]
[1771072429717,11.48367496,87.081,87.045,0.5]
[1771072431312,3.38307198,87.08,87.046,11.48817866]
[1771072431528,3.38307198,87.08,87.047,0.5]
[1771072433537,3.38307198,87.07,87.041,0.5]
[1771072434728,14.8681644,87.07,87.041,0.5]
[1771072434910,11.48509242,87.07,87.041,0.5]
[1771072435622,11.48382503,87.079,87.042,0.5]
[1771072436136,3.38307198,87.07,87.032,0.5]
[1771072436625,60.86,87.078,87.032,0.5]
[1771072436810,60.86,87.077,87.032,0.5]
[1771072437422,60.86,87.077,87.041,0.5]
[1771072438117,60.86,87.077,87.043,0.5]
[1771072439612,11.48422068,87.076,87.043,0.5]
[1771072440429,60.86,87.077,87.045,0.5]
[1771072440829,11.48316222,87.085,87.051,0.5]
[1771072443831,3.38307198,87.08,87.052,0.5]
[1771072444020,11.48316222,87.085,87.052,0.5]
[1771072445431,11.48316222,87.085,87.042,0.5]
[1771072445614,3.38307198,87.08,87.042,0.5]
[1771072445815,3.38307198,87.08,87.034,28.72423129]
[1771072445816,11.48382503,87.079,87.043,11.98857461]
[1771072446134,4.61729252,87.075,87.012,0.5]
[1771072446438,3.38307198,87.07,87.021,0.5]
[1771072446822,60.9,87.069,87.031,0.5]
[1771072447221,40.19338761,87.079,87.031,0.5]
[1771072447428,60.9,87.07,87.031,0.5]
[1771072447611,60.92,87.07,87.031,0.5]
[1771072449736,11.48514396,87.069,87.031,0.5]
[1771072450837,11.48514396,87.069,87.033,0.5]
[1771072452941,11.48514396,87.069,86.999,4.61729252]
[1771072452942,0.49274588,87.068,86.999,4.61729252]
[1771072453131,0.49274588,87.068,87.03,3.38307198]
[1771072454823,0.49274588,87.068,87.031,0.47356043]
[1771072455023,0.49274588,87.066,87.033,0.47356043]
[1771072455236,11.48482761,87.072,87.041,0.47356043]
[1771072455434,0.49274588,87.049,86.998,0.47356043]
[1771072455626,0.49274588,87.029,86.998,0.47356043]
[1771072456537,0.49274588,87.029,86.999,0.47356043]
[1771072456729,0.49274588,87.029,86.998,11.49448711]
[1771072456730,0.49274588,87.039,87.001,0.47356043]
[1771072457119,0.49274588,87.037,87.003,0.47356043]
[1771072458559,43.7,87.04,87.01,3.38307198]
[1771072458741,0.49274588,87.049,87.011,0.47356043]
[1771072459342,0.49274588,87.049,87.013,0.47356043]
[1771072460319,0.49274588,87.049,87.015,0.47356043]
[1771072460538,0.49274588,87.049,87.021,0.47356043]
[1771072460733,0.49274588,87.061,87.031,0.47356043]
[1771072460927,11.48633126,87.06,87.031,0.47356043]
[1771072461143,0.49274588,87.059,87.031,0.47356043]
[1771072461341,0.49274588,87.059,87.015,0.47356043]
[1771072462240,0.49274588,87.057,87.017,0.47356043]
[1771072463245,0.49274588,87.057,87.021,0.47356043]
[1771072464242,11.48597784,87.063,87.022,11.49134701]
[1771072464243,0.49274588,87.063,87.022,11.49134701]
[1771072464445,0.49274588,87.063,87.023,0.47356043]
[1771072465439,0.49274588,87.067,87.031,0.47356043]
[1771072466432,60.92,87.069,87.031,0.47356043]
[1771072466433,0.49274588,87.065,87.031,0.47356043]
[1771072467862,0.49274588,87.065,87.033,0.47356043]
[1771072468930,0.49274588,87.063,87.033,0.47356043]
[1771072470139,0.49274588,87.061,87.033,0.47356043]
[1771072472357,3.38117096,87.08,87.011,0.49584171]
[1771072472358,0.47373311,87.049,87.011,0.49584171]
[1771072472547,0.47373311,87.049,87.012,11.49266767]
[1771072472852,3.38117096,87.04,87.007,0.49584171]
[1771072473160,0.47373311,87.039,87.004,11.49372442]
[1771072473349,0.47373311,87.039,87.004,11.98956613]
[1771072474657,0.47373311,87.037,87.004,11.98956613]
[1771072475044,0.47373311,87.029,86.991,0.49584171]
[1771072475234,0.47373311,87.029,86.999,11.49426197]
[1771072475838,0.47373311,87.029,86.992,11.49526226]
[1771072476044,0.47373311,87.029,87.003,16.0424287]
[1771072476359,3.38117096,87.03,87.003,16.0424287]
[1771072476939,11.49042273,87.029,87.003,16.0424287]
[1771072477758,40.21647956,87.029,87.003,16.0424287]
[1771072481050,60.94,87.038,87.005,0.5]
[1771072482044,3.38117096,87.03,87.005,0.5]
[1771072482263,3.38117096,87.03,87.003,16.0424287]
[1771072482951,11.49042273,87.029,87.003,16.0424287]
[1771072483149,11.49042273,87.029,86.95,0.2]
[1771072483352,3.38117096,86.99,86.964,0.5]
[1771072483574,3.38117096,87.0,86.964,0.5]
[1771072484368,11.49438499,86.999,86.966,0.5]
[1771072485458,11.49438499,86.999,86.968,0.5]
[1771072486552,11.49332812,87.007,86.97,0.5]
[1771072486957,60.94,87.008,86.97,0.5]
[1771072487165,11.49332812,87.007,86.97,0.5]
[1771072487366,11.49332812,87.007,86.971,0.5]
[1771072487973,60.96,87.018,86.981,0.5]
[1771072488176,60.96,87.018,86.991,0.5]
[1771072488652,11.49147906,87.021,86.992,0.5]
[1771072489861,14.33301281,87.022,86.992,0.5]
[1771072490174,25.82442862,87.022,86.992,0.5]
[1771072491171,25.82442862,87.022,86.993,11.49517777]
[1771072491372,25.82442862,87.022,86.994,0.5]
[1771072493862,25.82442862,87.022,86.987,11.49584283]
[1771072494062,25.82442862,87.022,86.988,0.5]
[1771072495372,14.33301281,87.022,86.991,0.5]
[1771072495553,11.49147906,87.021,86.991,0.5]
[1771072497168,11.49147906,87.021,86.992,11.49530991]
[1771072497787,11.49147906,87.021,86.993,0.5]
[1771072498272,11.49147906,87.021,86.992,11.49530991]
[1771072499374,3.38117096,87.01,86.97,0.5]
[1771072499562,3.38117096,87.0,86.97,0.5]
[1771072499879,3.38117096,87.0,86.96,3.58117096]
[1771072499880,61.08,86.999,86.96,0.2]
[1771072500184,61.08,86.998,86.962,0.5]
[1771072500561,3.38117096,87.02,86.971,0.5]
[1771072500761,51.6868762,87.021,87.0,3.38117096]
[1771072500762,11.46669947,87.021,87.0,3.38117096]
[1771072500966,11.46669947,87.021,87.001,0.5]
[1771072501280,3.38117096,87.02,86.981,0.5]
[1771072501581,72.61174318,87.019,86.983,0.5]
[1771072502377,61.12,87.018,86.983,0.5]
[1771072503386,11.4920073,87.017,86.983,0.5]
[1771072503689,11.4920073,87.017,86.974,0.5]
[1771072504484,11.49227144,87.015,86.974,0.5]
[1771072504783,61.14,87.014,86.974,0.5]
[1771072505083,3.38117096,87.01,86.974,0.5]
[1771072505262,40.22295005,87.015,86.981,0.5]
[1771072505263,61.14,87.009,86.981,0.5]
[1771072506089,61.14,87.009,86.975,11.49755676]
[1771072506364,61.14,87.009,86.976,0.5]
[1771072510269,61.14,87.009,86.98,3.38117096]
[1771072510270,72.63319302,87.009,86.98,3.38117096]
[1771072510591,11.49174318,87.019,86.991,0.5]
[1771072510775,61.3,87.017,86.991,0.5]
[1771072511088,61.3,87.017,86.981,0.5]
[1771072512679,11.49213937,87.016,86.983,0.5]
[1771072512992,11.49213937,87.016,86.982,11.49663148]
[1771072512993,22.95822767,87.021,86.991,0.5]
[1771072513291,61.34,87.015,86.991,0.5]
[1771072514472,72.83232822,87.015,86.981,0.5]
[1771072515479,72.83232822,87.015,86.983,11.49637292]
[1771072519592,72.83232822,87.015,86.982,11.49663148]
[1771072520481,11.49232822,87.015,86.983,0.5]
[1771072520681,11.49253559,87.013,86.985,0.5]
[1771072522797,11.46669947,87.021,87.001,0.5]
[1771072524597,11.46669947,87.021,87.003,0.5]
[1771072527793,11.46669947,87.021,87.004,11.49372442]
[1771072527985,11.46669947,87.021,87.005,0.5]
[1771072528181,11.46669947,87.021,87.011,0.5]
[1771072528382,0.47081374,87.044,87.021,0.46114231]
[1771072528584,61.56,87.043,87.021,0.46114231]
[1771072528798,0.47081374,87.042,87.021,0.46114231]
[1771072528993,0.47081374,87.042,87.011,0.46114231]
[1771072529703,0.47081374,87.04,87.011,0.46114231]
[1771072530610,0.47081374,87.04,87.013,0.46114231]
[1771072530805,61.56,87.039,87.013,0.46114231]
[1771072531585,0.48836958,87.038,87.013,0.46114231]
[1771072533104,0.48836958,87.038,87.015,0.49691895]
[1771072533308,11.48936659,87.037,87.015,0.49691895]
[1771072533512,0.48836958,87.038,87.015,0.49691895]
[1771072535514,0.48836958,87.037,87.01,3.88066569]
[1771072535697,61.56,87.039,87.012,0.49691895]
[1771072536219,62.04836958,87.039,87.012,0.49691895]
[1771072536512,73.53749124,87.039,87.012,0.49691895]
[1771072536719,0.48836958,87.038,87.012,0.49691895]
[1771072538403,11.48738684,87.052,87.014,0.49691895]
[1771072538617,3.40856642,87.058,87.031,0.49691895]
[1771072539497,11.48673419,87.057,87.031,0.49691895]
[1771072540711,11.98645348,87.057,87.031,0.49691895]
[1771072540916,0.49971929,87.056,87.031,0.49691895]
[1771072541117,2.92019684,87.058,87.033,0.47988416]
[1771072542898,2.92019684,87.058,87.035,0.47988416]
[1771072545022,2.92019684,87.058,87.037,0.47988416]
[1771072545711,11.48672708,87.057,87.037,0.47988416]
[1771072546212,2.92019684,87.058,87.037,0.47988416]
[1771072546924,11.48672708,87.057,87.037,0.47988416]
[1771072547126,11.48672708,87.057,86.994,0.47988416]
[1771072547127,0.49971929,87.049,86.994,0.47988416]
[1771072547419,40.20354479,87.057,86.994,0.47988416]
[1771072547420,0.49971929,87.033,86.994,0.47988416]
[1771072547714,0.49971929,87.033,87.001,0.47988416]
[1771072548016,3.38374674,87.04,87.011,0.47988416]
[1771072548017,0.49971929,87.04,87.011,0.47988416]
[1771072548397,40.20354479,87.057,87.021,0.47988416]
[1771072548398,0.49971929,87.056,87.021,0.47988416]
[1771072548604,0.49971929,87.056,86.993,11.49517777]
[1771072548605,61.78,87.055,87.031,0.47988416]
[1771072549421,0.49971929,87.053,87.031,0.47988416]
[1771072549618,0.49971929,87.053,87.023,0.47988416]
[1771072550599,0.49971929,87.051,87.023,0.47988416]
[1771072550805,0.49971929,87.051,87.019,11.49164051]
[1771072551124,0.49971929,87.049,87.009,11.49296378]
[1771072552510,0.49971929,87.049,87.004,11.49370392]
[1771072552816,0.49971929,87.047,87.004,11.49370392]
[1771072553024,0.49971929,87.047,87.005,0.47988416]
[1771072553501,3.38374674,87.04,87.004,11.49370392]
[1771072553707,73.30791471,87.048,86.95,46.20295967]
[1771072553708,0.49971929,87.009,86.975,0.47988416]
[1771072554006,62.31971929,87.008,86.975,0.47988416]
[1771072554826,73.81293692,87.008,86.977,0.47988416]
[1771072555023,0.49971929,87.007,86.977,0.47988416]
[1771072555323,0.49971929,87.005,86.977,0.47988416]
[1771072556230,0.49971929,87.005,86.955,28.75023305]
[1771072556231,0.49971929,86.989,86.951,0.47988416]
[1771072556412,4.61729252,87.003,86.951,0.47988416]
[1771072556413,0.49971929,86.979,86.951,0.47988416]
[1771072557134,0.49971929,86.977,86.944,11.50155887]
[1771072557434,0.49971929,86.977,86.95,0.67988416]
[1771072559415,11.49742457,86.976,86.95,0.67988416]
[1771072559620,0.49971929,86.975,86.95,0.67988416]
[1771072560339,0.49971929,86.975,86.951,0.47988416]
[1771072560540,3.38374674,86.98,86.953,0.47988416]
[1771072560713,11.99613857,86.984,86.953,0.47988416]
[1771072560913,0.49971929,86.983,86.953,0.47988416]
[1771072562032,0.47916192,86.977,86.94,0.2]
[1771072562223,3.38374674,86.95,86.94,0.2]
[1771072562918,0.47916192,86.949,86.923,0.45855144]
[1771072563808,0.47916192,86.958,86.932,0.45855144]
[1771072564127,0.47916192,86.958,86.931,11.50337624]
[1771072564128,3.38374674,86.95,86.925,0.45855144]
[1771072564328,0.47916192,86.949,86.925,0.45855144]
[1771072565415,0.47916192,86.947,86.92,0.2]
[1771072566119,11.50112711,86.948,86.92,0.2]
[1771072566120,0.47916192,86.939,86.92,0.2]
[1771072566719,0.17988416,86.929,86.905,0.45855144]
[1771072567645,61.94,86.957,86.9,0.2]
[1771072567646,0.17988416,86.927,86.9,0.2]
[1771072567839,3.38374674,86.92,86.9,0.2]
[1771072568028,73.44377323,86.928,86.9,0.2]
[1771072568616,3.38374674,86.92,86.9,0.2]
[1771072570040,11.50496439,86.919,86.901,0.5]
[1771072570247,11.50390557,86.927,86.901,0.5]
[1771072570746,3.38374674,86.92,86.9,0.2]
[1771072572335,11.50390557,86.927,86.9,0.2]
[1771072572544,3.38374674,86.92,86.9,0.2]
[1771072573630,3.38374674,86.92,86.907,1e-08]
[1771072574037,62.02,86.919,86.907,1e-08]
[1771072574342,62.02,86.918,86.907,1e-08]
[1771072574640,62.04,86.917,86.907,1e-08]
[1771072575145,62.06,86.917,86.907,1e-08]
[1771072578231,73.56524243,86.917,86.907,1e-08]
[1771072578449,11.50524243,86.917,86.89,0.2]
[1771072578745,3.38374674,86.91,86.89,0.2]
[1771072579254,0.47916192,86.909,86.89,0.2]
[1771072579437,11.50642058,86.908,86.89,0.2]
[1771072580144,0.47916192,86.909,86.89,0.2]
[1771072580349,11.50642058,86.908,86.89,0.2]
[1771072581151,11.9855825,86.908,86.89,0.2]
[1771072581331,74.1455825,86.908,86.89,0.2]
[1771072581538,3.38374674,86.9,86.89,0.2]
[1771072581733,11.50761228,86.899,86.861,0.45855144]
[1771072581936,3.38374674,86.87,86.854,0.45855144]
[1771072582131,3.38374674,86.86,86.851,11.51396476]
[1771072582448,3.38374674,86.86,86.852,0.45855144]
[1771072583926,3.38374674,86.86,86.846,0.45855144]
[1771072584226,11.51291173,86.859,86.833,0.45855144]
[1771072584426,3.38374674,86.86,86.833,0.45855144]
[1771072585157,62.22,86.876,86.833,0.45855144]
[1771072585331,3.38374674,86.86,86.833,0.45855144]
[1771072585834,3.38374674,86.85,86.833,0.45855144]
[1771072586458,3.68374674,86.86,86.833,0.45855144]
[1771072587035,3.38374674,86.85,86.833,0.45855144]
[1771072587238,0.3,86.858,86.807,28.79925602]
[1771072587239,0.3,86.839,86.812,0.45855144]
[1771072587554,3.38374674,86.84,86.812,0.45855144]
[1771072587857,3.38374674,86.85,86.812,0.45855144]
[1771072588238,3.38374674,86.85,86.814,0.45855144]
[1771072588931,3.38374674,86.85,86.813,40.31654244]
[1771072588932,62.24,86.857,86.821,0.45855144]
[1771072590245,62.24,86.857,86.823,0.45855144]
[1771072590647,3.39853079,86.86,86.823,0.45855144]
[1771072590848,3.39853079,86.85,86.806,0.45855144]
[1771072591037,3.39853079,86.83,86.801,0.45855144]